Cogmind - Beta 15 @@@ ROGUE MODE // 2025.08.23 @ 06:51:22 Player: shapeshifter Result: Destroyed by DAS Turret with DAS Cannon Performance ------------- Evolutions (1) 500 Regions Visited (4) 800 Robots Destroyed (46) 230 Value Destroyed (1152) 1152 Prototype IDs (27) 540 Alien Tech Used (0) 0 Bonus (325) 325 TOTAL SCORE: 3547 Bonus ------- Follower Combat Kills 25 Aligned with FarCom 300 Cogmind --------- Core Integrity 0/400 Matter 28/300 Energy 30/100 System Corruption 5% Temperature Warm (194) Movement Core (400) Ox7 Location -9/Exiles Parts ------- > --- POWER (1) -------- (None) > --- PROPULSION (3) --- (None) > --- UTILITY (2) ------ (None) > --- WEAPON (3) ------- Firepult > --- INVENTORY (5) ---- Improved Assault Rifle AWS/Gauss Peak State ------------ > --- POWER ------------ Improved Ion Engine > --- PROPULSION ------- Light Treads Light Treads Light Treads > --- UTILITY ---------- High-capacity Storage Unit Hardened Light Armor Plating > --- WEAPON ----------- Shock Rifle Firepult > --- INVENTORY -------- Huge Storage Unit Hardened Light Armor Plating Shock Rifle Improved Assault Rifle Improved Assault Rifle Improved Assault Rifle AWS/Gauss Shock Bomb Launcher Shock Bomb Launcher Rocket Launcher Rocket Launcher Deploy-a-Sentry Deploy-a-Sentry Deploy-a-Sentry [Rating: 37] Favorites ----------- Power Improved Ion Engine Engine Improved Ion Engine Propulsion Light Treads Treads Light Treads Leg Advanced Myomer Leg Wheel Wheel Utility Hardened Light Armor Plating Device Seismic Detector Storage Large Storage Unit Protection Hardened Light Armor Plating Weapon Improved Assault Rifle Energy Gun Shock Rifle Energy Cannon Beam Cannon Ballistic Gun Improved Assault Rifle Launcher Rocket Launcher Build | -11 -10 -9 -9 -9 ------- Run | Yrd Mat Mat Min Exi Slots Evolved 2 | . . 2 . . Power . | . . . . . Propulsion 1 | . . 1 . . Utility . | . . . . . Weapon 1 | . . 1 . . Parts Attached 45 | 7 1 27 1 9 Power 6 | 1 . 5 . . Engine 6 | 1 . 5 . . Core . | . . . . . Reactor . | . . . . . Propulsion 10 | 2 . 6 . 2 Treads 7 | 2 . 4 . 1 Leg 1 | . . . . 1 Wheel 2 | . . 2 . . Hover . | . . . . . Flight . | . . . . . Utility 11 | 2 1 5 1 2 Device 1 | 1 . . . . Storage 5 | 1 1 1 1 1 Processor . | . . . . . Hackware . | . . . . . Protection 5 | . . 4 . 1 Artifact . | . . . . . Weapon 18 | 2 . 11 . 5 Energy Gun 4 | . . 2 . 2 Energy Cannon 2 | . . 1 . 1 Ballistic Gun 11 | 2 . 8 . 1 Ballistic Cannon . | . . . . . Launcher 1 | . . . . 1 Special Weapon . | . . . . . Impact Weapon . | . . . . . Slashing Weapon . | . . . . . Piercing Weapon . | . . . . . Special Melee Weapon . | . . . . . Unidentified Prototypes 4 | . . 3 . 1 Parts Lost 16 | . . 7 . 9 Power 2 | . . 1 . 1 Propulsion 5 | . . 2 . 3 Utility 3 | . . 1 . 2 Weapon 6 | . . 3 . 3 Highest Loss Streak 7 | . . 6 . 7 To Critical Strikes . | . . . . . Average Backups 13 | 3 6 12 14 16 Power 1 | . 1 1 . 2 Propulsion . | 1 2 1 1 . Utility 4 | . 1 3 5 4 Weapon 7 | 1 1 6 8 10 Tool/Special . | . . . . . Unused Backups 22 | . . 12 . 10 Power 3 | . . . . 3 Propulsion 1 | . . 1 . . Utility 6 | . . 3 . 3 Weapon 12 | . . 8 . 4 Tool/Special . | . . . . . Average Slot Usage (%) 88 | . 100 92 100 69 Engine 11 | . 14 10 11 10 Treads 29 | . 28 27 33 31 Wheel 1 | . . 2 . . Device 1 | . 14 1 . . Storage 10 | . 14 11 11 10 Protection 9 | . . 8 11 10 Ballistic Gun 22 | . 28 29 33 3 Peak Build Rating 37 | 7 8 21 20 37 Average Rating 16 | 4 7 15 19 17 On Entrance 9 | . 7 8 20 12 Naked Turns 1 | . . . . 1 Heaviest Build 92 | 14 19 41 52 92 Greatest Support 60 | 40 40 60 60 60 Greatest Overweight (x) 1 | . . 1 . 1 Average Overweight (x) . | . . . . . Largest Inventory Capacity 25 | 8 10 15 20 25 Average Capacity 16 | 7 8 14 15 21 Most Carried 25 | 6 9 15 18 25 Average Carried 14 | 3 6 12 14 19 Final Capacity 20 | 8 10 15 20 5 Final Carried 18 | 5 9 14 18 3 Class Distribution -------------------- 51% | Scavenger-Tank 23% | Scavenger-Mutant 17% | Mutant 6% | Tank Dominant Class ---------------- Mutant | -10/Materials Scavenger-Tank | -9/Materials Scavenger-Tank | -9/Mines Scavenger-Mutant | -9/Exiles Resources | -11 -10 -9 -9 -9 ----------- Run | Yrd Mat Mat Min Exi Matter Collected 1432 | 264 62 802 181 123 Remotely . | . . . . . Salvage Created 1653 | 38 107 1326 180 2 Parts 112 | 5 6 89 12 . Haulers Intercepted 4 | . . 4 . . Recyclers Shooed 1 | . . 1 . . Parts Field Recycled . | . . . . . Retrieved Matter . | . . . . . Parts Self-Destructed . | . . . . . Prevented . | . . . . . Kills | -11 -10 -9 -9 -9 ------- Run | Yrd Mat Mat Min Exi Combat Hostiles Destroyed 43 | . 3 29 7 4 Guns 38 | . 3 28 7 . Cannons 1 | . . 1 . . AOE 4 | . . . . 4 Classes Destroyed 11 | 1 2 7 1 . Builder 1 | . 1 . . . Tunneler 2 | 2 . . . . Hauler 4 | . . 4 . . Operator 2 | . . 2 . . Watcher 1 | . . 1 . . Swarmer 10 | . . 8 2 . Grunt 18 | . 3 14 1 . Brawler 1 | . . 1 . . Duelist 2 | . . 1 1 . Sentry 5 | . . 5 . . Assembled 7 | . . . 3 4 Best Kill Streak 7 | 1 2 7 3 4 Combat Bots Only 6 | . 1 6 3 4 Max Kills in Single Turn 3 | 1 1 2 2 3 Gunslinging 1 | . . 1 1 . Exploded 3 | . . . . 3 Melee . | . . . . . Uniques/NPCs Destroyed 1 | . . . . 1 8R-AWN (-9/Exiles) Combat | -11 -10 -9 -9 -9 -------- Run | Yrd Mat Mat Min Exi Hostile Shots Fired 254 | . 20 153 14 67 Missed 65 | . 6 43 4 12 Hits 189 | . 14 110 10 55 Melee 6 | . . 3 3 . Projectile 183 | . 14 107 7 55 Critical Strikes 14 | . . 3 . 11 Damage Taken 2981 | . 154 1189 168 1470 Core 473 | . 45 163 18 247 Absorbed by Shields . | . . . . . Core Remaining (%) 91 | 100 82 . . . Volleys Fired 162 | 3 25 89 12 33 Largest 3 | 2 2 3 3 3 Hottest 250 | 40 40 69 69 250 Shots Fired 345 | 6 50 204 37 48 Gun 326 | 6 50 199 37 34 Cannon 6 | . . 5 . 1 Launcher 13 | . . . . 13 Special . | . . . . . Kinetic 309 | 6 50 189 37 27 Thermal 6 | . . 5 . 1 Explosive 13 | . . . . 13 Electromagnetic 17 | . . 10 . 7 Robot Hit Streak 17 | 4 9 17 7 4 Robot Miss Streak 6 | 1 4 6 3 4 Penetration Max . | . . . . . Secondary Targets 9 | . . 6 3 . Max Gunslinging Chain 2 | . . 1 2 . Shots Hit Robots 201 | 4 29 127 25 16 Core Hits 96 | 3 11 58 11 13 Critical Kills . | . . . . . Critical Parts Destroyed 2 | . . 2 . . Critical Strikes 2 | . . 2 . . Destroy 2 | . . 2 . . Melee Attacks . | . . . . . Impact . | . . . . . Slashing . | . . . . . Piercing . | . . . . . Sneak Attacks . | . . . . . Combat Hostiles . | . . . . . Follow-up Attacks . | . . . . . Damage Inflicted 3246 | 37 306 1825 356 722 Guns 2575 | 37 306 1738 356 138 Cannons 111 | . . 87 . 24 Explosions 560 | . . . . 560 Melee . | . . . . . Ramming . | . . . . . Kinetic 2490 | 37 306 1655 356 136 Thermal 142 | . . 87 . 55 Explosive 529 | . . . . 529 Electromagnetic 85 | . . 83 . 2 Impact . | . . . . . Slashing . | . . . . . Piercing . | . . . . . Highest Corruption 5 | . . 5 5 5 Average Corruption 3 | . . 1 5 5 Corruption Purged . | . . . . . Corruption Blocked . | . . . . . Effects 66 | . . 8 22 36 Message Errors 16 | . . 1 7 8 Matter Fused 15 | . . 4 5 6 Heat Flow Errors 6 | . . . 1 5 Energy Discharges 10 | . . 2 2 6 Parts Fused 1 | . . . . 1 Data Loss (minor) 10 | . . . 3 7 Data Loss (major) 2 | . . . 1 1 Misfires 2 | . . . 1 1 Alerts 3 | . . 1 2 . Weapon Failures 1 | . . . . 1 Overload Shots . | . . . . . Overflow Damage 17 | . . . . 17 Projectiles . | . . . . . Explosions 17 | . . . . 17 Melee . | . . . . . Knockbacks . | . . . . . Impact . | . . . . . Kinetic . | . . . . . Secondary . | . . . . . Self-Inflicted Damage . | . . . . . Shots . | . . . . . Rammed . | . . . . . Targets Rammed . | . . . . . Kicked . | . . . . . Crushed . | . . . . . Highest Temperature 221 | . 12 112 168 221 Average Temperature 41 | . 6 26 37 76 Received Heat Transfer 510 | . 84 399 27 . Siege Activations . | . . . . . Martial Activations . | . . . . . Shielding Activations . | . . . . . Robots Disrupted . | . . . . . Combat Hostiles . | . . . . . Robots Corrupted . | . . . . . Combat Hostiles . | . . . . . Parts Fried . | . . . . . Impact Corruptions . | . . . . . Robots Melted . | . . . . . Combat Hostiles . | . . . . . Parts Melted 1 | . . 1 . . Heat Transferred 425 | . . 185 . 240 Parts Sabotaged . | . . . . . Parts Stolen . | . . . . . Parts Stripped . | . . . . . Power Chain Reactions . | . . . . . Alert | -11 -10 -9 -9 -9 ------- Run | Yrd Mat Mat Min Exi Maximum Alert Level 1 | . . 1 . . Low Security (%) 95 | 100 100 91 100 . Level 1 4 | . . 8 . . Level 2 . | . . . . . Level 3 . | . . . . . Level 4 . | . . . . . Level 5 . | . . . . . High Security . | . . . . . Max Security . | . . . . . Peak Influence 293 | 5 40 293 104 . Initial 104 | . . . 104 . Average 77 | . 11 130 22 . Influence Increases 1015 | 10 91 792 122 . Destroy 0b10 Robot/C 740 | . 60 580 100 . Destroy 0b10 Robot/NC 50 | 10 5 35 . . Destroy Leader 140 | . 10 120 10 . Allied During Kill 12 | . . . 12 . Successful Hack 41 | . 16 25 . . Disable Machine 15 | . . 15 . . Destroy Structure 2 | . . 2 . . Lose Combat Pursuer 15 | . . 15 . . Influence Decreases 1015 | 10 90 524 391 . Entered New Map 166 | . . 1 165 . Time Decay 779 | 10 90 453 226 . Lost Part 70 | . . 70 . . Squads Dispatched 4 | . 2 2 . . Investigation . | . . . . . Extermination . | . . . . . Reinforcement 4 | . 2 2 . . Assault . | . . . . . Garrison . | . . . . . Intercept . | . . . . . Searches Triggered . | . . . . . Construction Impeded . | . . . . . Haulers Reinforced . | . . . . . Active Scanning Responses . | . . . . . Cargo Convoy Interrupts . | . . . . . Stealth | -11 -10 -9 -9 -9 --------- Run | Yrd Mat Mat Min Exi Distress Signals 3 | . . 3 . . Communications Jammed . | . . . . . Distress Signals . | . . . . . Times Spotted 62 | . 7 37 11 7 Peak Tracking Total 9 | . 3 5 6 9 Tactical Retreats 2 | . . 1 . 1 Traps | -11 -10 -9 -9 -9 ------- Run | Yrd Mat Mat Min Exi Traps Triggered . | . . . . . Indirectly . | . . . . . Trap Hack Attempts . | . . . . . Triggered . | . . . . . Disarmed . | . . . . . Reprogrammed . | . . . . . Reused . | . . . . . Traps Extracted . | . . . . . Installed . | . . . . . Triggered . | . . . . . Machines | -11 -10 -9 -9 -9 ---------- Run | Yrd Mat Mat Min Exi Machines Disabled 8 | . . 1 . 7 Max in Single Turn 2 | . . 1 . 2 Machines Repaired . | . . . . . Machines Dismantled . | . . . . . Machines Sabotaged . | . . . . . Overloaded Fab Kills . | . . . . . Hacking | -11 -10 -9 -9 -9 --------- Run | Yrd Mat Mat Min Exi Machines Accessed 11 | . 4 5 . 2 Terminals 9 | . 4 5 . . Fabricators . | . . . . . Repair Stations . | . . . . . Recycling Units . | . . . . . Scanalyzers . | . . . . . Garrison Access . | . . . . . Total Hacks 26 | . 11 13 . 2 Successful 12 | . 4 6 . 2 Failed 14 | . 7 7 . . Catastrophic 3 | . 1 2 . . Database Lockouts . | . . . . . Manual 20 | . 8 11 . 1 Terminals 24 | . 11 13 . . Fabricators . | . . . . . Repair Stations . | . . . . . Recycling Units . | . . . . . Scanalyzers . | . . . . . Garrison Access . | . . . . . Terminal Hacks 5 | . 1 2 . 2 Record 1 | . . . . 1 Branch Access Points 1 | . . 1 . . Registered Components 2 | . 1 1 . . Proto ID Catalog 1 | . . . . 1 Fabricator Hacks . | . . . . . Repair Station Hacks . | . . . . . Recycling Unit Hacks . | . . . . . Scanalyzer . | . . . . . Garrison Access Hacks . | . . . . . Unauthorized Hacks 7 | . 3 4 . . Terminals 7 | . 3 4 . . Botnet 7 | . 3 4 . . Fabricators . | . . . . . Repair Stations . | . . . . . Recycling Units . | . . . . . Scanalyzers . | . . . . . Garrison Access . | . . . . . Data Cores Recovered 1 | . . 1 . . Used 1 | . . 1 . . Hacking Detections 9 | . 4 5 . . Full Trace Events 1 | . 1 . . . Feedback Events . | . . . . . Feedback Blocked . | . . . . . Robot Schematics Acquired . | . . . . . Robots Built . | . . . . . Authchips . | . . . . . Time . | . . . . . Total Robot Build Rating . | . . . . . Part Schematics Acquired . | . . . . . Parts Built . | . . . . . Authchips . | . . . . . Time . | . . . . . Total Part Build Rating . | . . . . . Parts Repaired . | . . . . . Time . | . . . . . Parts Recycled . | . . . . . Recycled Matter . | . . . . . Retrieved Matter . | . . . . . Retrieved Components . | . . . . . Parts Scanalyzed . | . . . . . Part Schematics Acquired . | . . . . . Parts Damaged . | . . . . . Bothacking | -11 -10 -9 -9 -9 ------------ Run | Yrd Mat Mat Min Exi Used RIF Installer . | . . . . . Robots Hacked . | . . . . . Non-combat . | . . . . . Combat . | . . . . . Robot Hacks Applied . | . . . . . Relay Couplers Released . | . . . . . Fabnet Peak Effective % . | . . . . . Robots Rewired . | . . . . . Allies Hacked . | . . . . . Hacks Repelled . | . . . . . Allies | -11 -10 -9 -9 -9 -------- Run | Yrd Mat Mat Min Exi Total Allies 5 | . . . 5 . Largest Group 3 | . . . 3 2 Highest-Rated Group 51 | . . . 51 51 Highest-Rated Ally 31 | . . . 31 31 Total Orders . | . . . . . Ally Attacks 40 | . . . 16 24 Total Damage 1410 | . . . 156 1254 Kills 5 | . . . 4 1 Allies Corrupted . | . . . . . Allies Melted . | . . . . . Turrets Deployed 3 | . . . . 3 Intel | -11 -10 -9 -9 -9 ------- Run | Yrd Mat Mat Min Exi Active Infowar (turns) 507 | 14 244 249 . . Seismic 507 | 14 244 249 . . Robot Analysis Total . | . . . . . Derelict Logs Recovered 1 | . . . 1 . Drone Launches . | . . . . . Drone Recoveries . | . . . . . Exploration | -11 -10 -9 -9 -9 ------------- Run | Yrd Mat Mat Min Exi Turns Passed 4132 | 136 244 1542 1009 1201 Spaces Moved 2067 | 76 105 763 583 540 Core 12 | 11 . . . 1 Treads 1940 | 65 105 687 583 500 Legs 39 | . . . . 39 Wheels 76 | . . 76 . . Hover . | . . . . . Flight . | . . . . . Fastest Speed 50 | 50 160 90 160 50 Average Speed 165 | 144 160 154 160 192 Slowest Speed 240 | 160 160 240 160 240 Overloaded Moves . | . . . . . Propulsion Burnouts . | . . . . . Robots Hopped . | . . . . . Potential Cave-ins . | . . . . . Cave-ins Triggered . | . . . . . Exploration Rate (%) 47 | 5 24 44 99 66 Regions Visited 4 Branch Regions 2 Pre-discovered Areas 1 | . . . . 1 Known Exits Taken 1 | . . 1 . . Unknown Exits Taken 3 | 1 1 . 1 . Scrap Searched 2 | . . . 2 . Spaces Dug . | . . . . . Terrain Destroyed 35 | . . . . 35 Melee . | . . . . . Projectile . | . . . . . AOE 35 | . . . . 35 Terrain Rammed . | . . . . . Walls Destroyed . | . . . . . Machines Disabled . | . . . . . Actions | -11 -10 -9 -9 -9 --------- Run | Yrd Mat Mat Min Exi Total 2503 | 97 136 970 633 667 Wait 94 | . . 20 34 40 Move 2063 | 75 104 762 582 540 Hop . | . . . . . Pick Up 68 | 12 5 38 1 12 Fast Attach . | . . . . . Attach 29 | 7 . 12 . 10 Detach 6 | . . . 3 3 Swap 26 | . 1 18 1 6 Drop 55 | . 1 31 . 23 Fire 162 | 3 25 89 12 33 Melee . | . . . . . Ram . | . . . . . Kick . | . . . . . Crush . | . . . . . Escape Stasis . | . . . . . Rewire . | . . . . . Trap . | . . . . . Miscellaneous . | . . . . . Route ------- -11/Scrapyard -10/Materials -9/Materials (discovered 3 exits: [*Mat] / *Min x2) -9/Mines (discovered 3 exits: [*Mat x2] / *Exi) -9/Exiles History --------- Turn | Location | Event 3 | -11/Scrapyard | Discovered new exit (range 15) 137 | -11/Scrapyard | Entered Materials 309 | -10/Materials | Build established: Mutant 354 | -10/Materials | Discovered new exit (range 8) 381 | -10/Materials | Entered another Materials area 381 | -9/Materials | Evolved 2 slots: Propulsion x1, Weapon x1 467 | -9/Materials | Discovered new exit (range 16) 736 | -9/Materials | Lost 6 parts (2n1u3w) 1070 | -9/Materials | Identified exit to Mines 1255 | -9/Materials | Build established: Scavenger-Tank 1270 | -9/Materials | Discovered new exit (range 13) 1923 | -9/Materials | Entered Mines 1927 | -9/Mines | Assisted by bots powering up and referring to "LRC-V3" 1947 | -9/Mines | Met a Derelict bent on vengeance 2207 | -9/Mines | Discovered new exit (range 10) 2254 | -9/Mines | Assembled infested the area 2312 | -9/Mines | Lost 3 allies 2913 | -9/Mines | Discovered new exit (range 5) 2922 | -9/Mines | Deemed a non-threat by the Exiles lab entrance 2922 | -9/Mines | Discovered new exit (range 5) 2932 | -9/Mines | Entered Exiles 2932 | -9/Exiles | Accompanied by 2 allies 2962 | -9/Exiles | Led the pair of lost Derelicts to a safe place 2977 | -9/Exiles | Met 8R-AWN 3003 | -9/Exiles | Met EX-HEX 3076 | -9/Exiles | Met EX-DEC 3101 | -9/Exiles | Learned location of Zion (-6) 3204 | -9/Exiles | Met EX-BIN 3226 | -9/Exiles | Aligned with FarCom system 3228 | -9/Exiles | Given EX-Vault access code 3229 | -9/Exiles | Build established: Scavenger-Mutant 3264 | -9/Exiles | Opened EX-Vault 3279 | -9/Exiles | Found Firepult 3287 | -9/Exiles | Found Deploy-a-Sentry 3290 | -9/Exiles | Found AWS/Gauss 3294 | -9/Exiles | Found Deploy-a-Sentry 3298 | -9/Exiles | Found Deploy-a-Sentry 3344 | -9/Exiles | Warned to stay clear of 0b10 Research branches 3861 | -9/Exiles | Attacked by the Exiles 3976 | -9/Exiles | DAS Turret deployed 3979 | -9/Exiles | DAS Turret deployed 3983 | -9/Exiles | DAS Turret deployed 3990 | -9/Exiles | Core integrity fell below 50% 4002 | -9/Exiles | Allies destroyed 8R-AWN 4128 | -9/Exiles | Core integrity fell below 20% 4133 | -9/Exiles | Destroyed by DAS Turret with DAS Cannon Last Messages --------------- Imp. Assault Rifle. 04081_ System corrupted: Imp. Assault Rifle misfires. 04095_ Knocked back. 04099_ Acquired 8 matter. 04099_ Rocket Launcher destroyed. 04100_ System corrupted: Component data lost. 04113_ Adv. Myomer Leg blasted off. 04115_ Lgt. Treads destroyed. 04115_ Knocked back. 04119_ Imp. Ion Engine destroyed. 04119_ Hrd. Light Armor Plating destroyed. 04121_ Imp. Assault Rifle destroyed. 04121_ Lgt. Treads destroyed. 04123_ Knocked back. 04129_ Imp. Assault Rifle destroyed. 04131_ Knocked back. 04132_ Acquired 19 matter. 04132_ DAS Turret heat damages Prototype Ballistic Cannon. Map ----- +----------------------------------------------------+ | ?????????????????????????????????????#" | | ?????????????????????????????????????#" ## | | ?????????????????????????????????????#""""""?# | | ?????????????????????????????????????##"###??# | | ?????????????????????????????????????? ??????# | | ?????????????????????????????????????????????# | | ????????????????????????????????????????????## | | ????????????#######?????????????????????????#" | | #####???????#!!! "#?????????????????????????#" | | #""#??????# %"#?????????????????????????#" | | ??????# % "#?????????????????????????#" | | #????## %" #????????????##???????????#" | | #####" ]%!"#???????????? """????????#" | | ##"]%[""#????????????" """#???????## | | # " ][###????????????" ?????????# | | ?# %!##????????????"" ?????????#" | | ??### % ###??????????"" "#????????#" | | ????### ; ###???????? ""?????????#" | | ######" % % ###???????" "?????????##" | | !!""""" %% # ##??????# #????????##"" | | t ; ##???### ###?######"" | | / t ; ""#####X# #"###""""""" | | !! t ;### % """"" " "" | | ! ####?# % "" """ " | | ##;;;##;#???# ## % " " | | ##?##???#### # @ | | # #???????????## # # % | | # #?????????????###### %% % | | #???????????????????# = | | #????????????????????### | | ???????????????????????# """""" | | ??????????????????????# ######"" | | ?????????????????????? ""##?????## | | ????????????????????? """##???????? | | ????????????????????? """##????????? | | ????????????????????# ""#?????????? | | ????????????????????# ########??## | | ????????????????????# t ## ####" | | ????????????????????## """" | | ?????????????????????# | | ?????????????????????## | | ??????????????????????## | | ???????????????????????#" " | | ????????????????????????"""" ""## # | | ????????????????????????"" ""#### # | | ????????????????????????? """"##??# # | | ?????????????????????????"" """#??##! # | | ?????????????????????????? ""##??# ! | | ??????????????????????????? """#????#" | | ????????????????????????????" ??????#" | +----------------------------------------------------+ Best States ------------- Heat Dissipation 28 Energy Generation 12 Energy Capacity 265 Matter Stores 300 Matter Capacity 300 Sight Range 16 Terrain Scan Density 10 Armor Coverage 150 Evasion (%) 50 Recoil Reduction 3 Item Schematics ----------------- None Robot Schematics ------------------ None Fabricated ------------ Nothing Repaired ---------- Nothing Alien Tech Used ----------------- None Achievements -------------- None Challenges ------------ None Game ------ Seed AlloyBottomlessNetwork Manual? 0 Play Time 00:31:16 Cumulative 186.7 hours Start 2025.08.23 @ 06:11:16 End 2025.08.23 @ 06:51:22 Sessions 3 Manual Loads 0 Difficulty Rogue Special Mode None Game No. 292 Rogue 292 Adventurer 0 Explorer 0 Win Type - Total 4 Types 3/0/1/0/0/0/0/0/0/0 Lore% 79 Gallery% 74 Achievement% 55 Wizard Run 0 Options --------- Layout 1 ASCII 0 Keyboard 0 Movement Mouse Keybinds 0 Fullscreen 1 Font 24/Smallcaps Map View 50x40 Zoom Use 0% Tactical HUD 1 Map Filters NONE Filters NONE Steam 1 RUN: 013b38a6-aab4-499a-ae8f-e5fe906eda3f